Workbook

Sheet LHF-C
A2: Zvolte jazyk | I2: =Translation!C37 -> Opening width (W) [mm] | R2: =Translation!C13 -> Back room (D) [mm] | S2: =IF(J4="","",VLOOKUP(J4,Selections!E5:F11,2,TRUE)) ->  | Y2: =Translation!C43 -> Type of motor
A3: Select a language | K3: =IF(J2/1000*J4/1000<14,"","W x H max. 14m2") -> 
A4: Wählen Sie eine Sprache: | D4: EN | I4: =Translation!C27 -> Clear opening height (H) [mm] | R4: =Translation!C17 -> Bottom edge of horizontal tracks (K) [mm] | S4: =IF(J4="","",J4-47) ->  | Y4: =Translation!C15 -> Length of motor (X) [mm] | Z4: =IF(Z2="","",IF(Z2=Selections!K5,VLOOKUP(J4,Selections!K6:L7,2,TRUE),IF(Z2=Selections!K9,VLOOKUP(J4,Selections!K10:L11,2,TRUE),IF(Z2=Selections!K13,VLOOKUP(J4,Selections!K14:L15,2,TRUE),"Error")))) -> 
A5: Wybierz język:
A6: Sélectionner une langue: | I6: =Translation!C38 -> Operated | J6: elektricky | R6: =Translation!C11 -> Bottom edge of fully open door (CPH) [mm] | S6: =IF(J6="","",IF(J6=Selections!C5,'LHF-C'!J4-175,IF(J6=Selections!C6,'LHF-C'!J4-0,"Error"))) -> Error | Y6: =Translation!C19 -> Hanging point for motor track (E1) [mm] | Z6: =IF(Z2="","",IF(Z2=Selections!Q5,VLOOKUP(J4,Selections!Q6:R7,2,TRUE),IF(Z2=Selections!Q9,VLOOKUP(J4,Selections!Q10:R11,2,TRUE),IF(Z2=Selections!Q13,VLOOKUP(J4,Selections!Q14:R15,2,TRUE),"Error")))) -> 
A7: Kies een taal:
R8: =Translation!C42 -> Height of lintel (F) [mm] | S8: 200 | Y8: =Translation!C21 -> Hanging point for motor (E2) [mm] | Z8: =IF(Z2="","",IF(Z2=Selections!N5,VLOOKUP(J4,Selections!N6:O7,2,TRUE),IF(Z2=Selections!N9,VLOOKUP(J4,Selections!N10:O11,2,TRUE),IF(Z2=Selections!N13,VLOOKUP(J4,Selections!N14:O15,2,TRUE),"Error")))) -> 
A11: Z | F11: =IF(OR(J4="",Z2=""),"X","X = "&Z4) -> X
G12: =IF(OR(J4="",Z2=""),"E2","E2 = "&Z8) -> E2
I13: =IF(J4="","D","D = "&S2) -> D
M14: =IF(OR(J4="",Z2=""),"E1","E1 = "&Z6) -> E1
D15: Y1 = 400 | N15: =IF(OR(J2>3000,J4>2500),"Y2 = 800","Y2") -> Y2
T19: W | U19: =Translation!C36 -> Opening width [mm]
T20: H | U20: =Translation!C26 -> Clear opening height [mm]
C21: 212 | T21: D | U21: =Translation!C12 -> Back room [mm]
T22: K | U22: =Translation!C16 -> Bottom edge of horizontal tracks [mm]
P23: H | T23: F | U23: =Translation!C41 -> Height of lintel [mm]
C24: =Translation!C34 -> CEE 7/3 or CEE 7/5 socket | T24: CEL | U24: =Translation!C8 -> Height of ceiling [mm]
C25: =Translation!C35 -> 230V, 50Hz, protect by 6 A (10 A) circuit breaker | T25: CPH* | U25: =Translation!C10 -> Bottom edge of fully open door [mm]
T26: Y1 | U26: =Translation!C22 -> Hanging point
M27: 500 | T27: Y2 | U27: =Translation!C23 -> Hanging point (W>3000 or H>2500)
T28: X | U28: =Translation!C14 -> Length of motor [mm]
T29: E1 | U29: =Translation!C18 -> Hanging point for motor track [mm]
T30: E2 | U30: =Translation!C20 -> Hanging point for motor [mm]
Q31: =IF(J4="","min. CEL = H + 200","CEL = "&J4+S8) -> min. CEL = H + 200 | T31: Z | U31: =Translation!C33 -> Position of socket, ca. 250 mm
T32: *1 | U32: =Translation!C50 -> clear height could be decreased by accessories installed on inner side of door leaf (handgrip, reinforcing strut etc.)
P33: =IF(J4="","CPH","CPH = "&S6) -> CPH
G34: =IF(J4="","H - 87",J4-87) -> H - 87 | K34: =IF(J4="","K = H - 47","K = "&J4-47) -> K = H - 47 | M34: =IF(J4="","H - 415",J4-415) -> H - 415
T35: *2 | U35: =Translation!C51 -> when door stopper is used
S37: H | U37: D | V37: K | W37: =Translation!C6 -> Manually operated | Z37: =Translation!C7 -> Electric. operated
S38: > | T38: <= | W38: min. CEL | X38: CPH*1 | Y38: CPH*1 *2 | Z38: =W38 -> min. CEL | AA38: CPH*1
T39: 2000 | U39: =T39+575 -> 2575 | V39: H - 47 | W39: H + 200 | X39: H - 175 | Y39: H | Z39: H + 200 | AA39: H
S40: =T39+1 -> 2001 | T40: 2125 | U40: =T40+575 -> 2700
S41: =T40+1 -> 2126 | T41: 2250 | U41: 2825
S42: 2251 | T42: 2375 | U42: 2950
S43: 2376 | T43: 2500 | U43: 3075
S44: 2501 | T44: 2750 | U44: 3325
S45: 2751 | T45: 3000 | U45: 3575
N48: 150
S49: =Translation!C44 -> Information regarding motor
S50: H | U50: X | W50: E1 | Y50: E2
S51: > | T51: <= | U51: Black | V51: Cube | W51: =U51 -> Black | X51: Cube | Y51: =W51 -> Black | Z51: Cube
T52: 2000 | U52: 3540 | V52: =Selections!L14 -> 3680 | W52: 1400 | X52: =Selections!R14 -> 1800 | Y52: 3265 | Z52: =Selections!O14 -> 3480
B53: =Translation!C52 -> Min. load capacity of ceiling/max. weight per hanging point: 100 kg | S53: =T52+1 -> 2001 | T53: 2125
S54: =T53+1 -> 2126 | T54: 2250
A55: >=90 | F55: W | L55: >=90 | S55: 2251 | T55: 2375
S56: 2376 | T56: 2500 | U56: 4240 | Y56: 3975
S57: 2501 | T57: 2750 | V57: =Selections!L15 -> 4160 | X57: =Selections!R15 -> 2050 | Z57: =Selections!O15 -> 3960
N58: 54 | S58: 2751 | T58: 3000
X62: https://www.door-documents.com/en/installation-drawing-lhf-c | Y62: https://www.door-documents.com/en/installation-drawing-lhf-c
Y63: Guardy LHF-C
AB66: =Translation!C31 -> Version: | AC66: =Translation!C32 -> Sheet:
Z67: 2525 | AB67: 2341 | AC67: A4

Sheet Translation (hidden)
C1: LHF-C
C2: =IF(ISERROR(VLOOKUP('LHF-C'!D4,Selections!A1:B12,2,FALSE))=TRUE,"Translation not available",VLOOKUP('LHF-C'!D4,Selections!A1:B12,2,FALSE)) -> 2 | I2: CZ | J2: EN | K2: DE | L2: PL | M2: FR | N2: NL | O2: ET | P2: FI
C3: =VLOOKUP($I3,$I:$T,C$2,FALSE) -> General | I3: Obecná | J3: General | K3: Allgemeine | L3: Ogólna | M3: Hauteur | N3: Algemene | O3: Üldine | P3: Yleinen
C4: =VLOOKUP($I4,$I:$T,C$2,FALSE) -> height [mm] | I4: výška [mm] | J4: height [mm] | K4: Höhe [mm] | L4: wysokość [mm] | M4: Générale [mm] | N4: hoogte [mm] | O4: kõrgus [mm] | P4: Korkeus [mm]
C5: Min. height of ceiling [mm] | I5: Min. výška stropu [mm] | J5: Min. height of ceiling [mm] | K5: Min. Deckenhöhe [mm] | L5: Min wysokość stropu [mm] | M5: Hauteur minimale du plafond [mm] | N5: Min. plafondhoogte [mm] | O5: Min. lae kõrgus [mm] | P5: Min. katon korkeus [mm]
C6: Manually operated | I6: Vrata bez motoru | J6: Manually operated | K6: Tor ohne Motor | L6: Brama bez napędu | M6: Porte sans moteur | N6: Deur zonder motor | O6: Käsitsi juhitav | P6: Käsikäyttöinen
C7: Electric. operated | I7: Vrata s motorem | J7: Electric. operated | K7: Tor mit Motor | L7: Brama z napędem | M7: Porte avec moteur | N7: Garaged. met motor | O7: Elektriliselt juhitav | P7: Sähkökäyttöinen
C8: Height of ceiling [mm] | I8: Výška stropu [mm] | J8: Height of ceiling [mm] | K8: Deckenhöhe [mm] | L8: Wysokość stropu [mm] | M8: Hauteur du plafond [mm] | N8: Plafondhoogte [mm] | O8: Lae kõrgus [mm] | P8: Katon korkeus [mm]
C9: Height to bottom edge of lintel profile [mm] | I9: Výška ke spodní hraně překladového profilu [mm] | J9: Height to bottom edge of lintel profile [mm] | K9: Höhe zur unteren Kante des Sturzprofiles [mm] | L9: Wysokość do dolnej krawędzi profilu nadproża [mm] | M9: Hauteur jusqu'à l'arête inférieure du profilé de linteau [mm] | N9: Hoogte vanaf de onderrand van het dwarsbalkprofiel [mm] | O9: Kõrgus silluse profiili alumise servani [mm] | P9: Korkeus kamanaprofiilin alareunaan [mm]
C10: Bottom edge of fully open door [mm] | I10: Spodní hrana plně otevřených vrat [mm] | J10: Bottom edge of fully open door [mm] | K10: Untere Kante des vollständig geöffneten Tors [mm] | L10: Dolna krawędź w pełni otwartej bramy [mm] | M10: Arête inférieure de la porte toute ouverte [mm] | N10: Onderste rand van een volledig geopende deur [mm] | O10: Täielikult avatud ukse alumine serv [mm] | P10: Täysin auki olevan oven alareunan korkeus [mm]
C11: Bottom edge of fully open door (CPH) [mm] | I11: Spodní hrana plně otevřených vrat (CPH) [mm] | J11: Bottom edge of fully open door (CPH) [mm] | K11: Untere Kante des vollständig geöffneten Tors (CPH) [mm] | L11: Dolna krawędź w pełni otwartej bramy (CPH) [mm] | M11: Arête inférieure de la porte toute ouverte (CPH) [mm] | N11: Onderste rand van een volledig geopende deur (CPH) [mm] | O11: Täielikult avatud ukse alumine serv (CPH) [mm] | P11: Täysin auki olevan oven alareunan korkeus (CPH) [mm]
C12: Back room [mm] | I12: Hloubka vedení [mm] | J12: Back room [mm] | K12: Führungstiefe [mm] | L12: Głębokość prowadzenia [mm] | M12: Profondeur du guidage [mm] | N12: Inbouwdiepte van de rails [mm] | O12: Tagaruum [mm] | P12: Syvyystila [mm]
C13: Back room (D) [mm] | I13: Hloubka vedení (D) [mm] | J13: Back room (D) [mm] | K13: Führungstiefe (D) [mm] | L13: Głębokość prowadzenia (D) [mm] | M13: Profondeur du guidage (D) [mm] | N13: Diepte van de geleidingsrail (D) [mm] | O13: Tagaruum (D) [mm] | P13: Syvyystila (D) [mm]
C14: Length of motor [mm] | I14: Délka pohonu [mm] | J14: Length of motor [mm] | K14: Antriebslänge [mm] | L14: Długość napędu [mm] | M14: Longueur de la propulsion [mm] | N14: Inbouwdiepte incl. de aandrijving [mm] | O14: Mootori pikkus [mm] | P14: Avaajan kokonaispituus [mm]
C15: Length of motor (X) [mm] | I15: Délka pohonu (X) [mm] | J15: Length of motor (X) [mm] | K15: Antriebslänge (X) [mm] | L15: Długość napędu (X) [mm] | M15: Longueur de la propulsion (X) [mm] | N15: Inbouwdiepte incl. de aandrijving (X) [mm] | O15: Mootori pikkus (X) [mm] | P15: Avaajan kokonaispituus (X) [mm]
C16: Bottom edge of horizontal tracks [mm] | I16: Spodní hrana horizontálního vedení [mm] | J16: Bottom edge of horizontal tracks [mm] | K16: Untere Kante der Horizontalführung [mm] | L16: Dolna krawędź prowadzenia poziomego [mm] | M16: Arête inférieure du guidage horizontale [mm] | N16: Onderste rand van de horizontale rails [mm] | O16: Horisontaalsete siinide alumine serv [mm] | P16: Vaakajohteiden alareuna [mm]
C17: Bottom edge of horizontal tracks (K) [mm] | I17: Spodní hrana horizontálního vedení (K) [mm] | J17: Bottom edge of horizontal tracks (K) [mm] | K17: Untere Kante der Horizontalführung (K) [mm] | L17: Dolna krawędź prowadzenia poziomego (K) [mm] | M17: Arête inférieure du guidage horizontale (K) [mm] | N17: Onderste rand van de horizontale rails (K) [mm] | O17: Horisontaalsete siinde alumine serv (K) [mm] | P17: Vaakajohteiden alareuna (K) [mm]
C18: Hanging point for motor track [mm] | I18: Kotvící bod lišty pohonu [mm] | J18: Hanging point for motor track [mm] | K18: Verankerungspunkt der Antriebsleiste [mm] | L18: Punkt uchwycenia szyny napędu [mm] | M18: Point d'ancrage de la glissière de propulsion [mm] | N18: Bevestigingspunt van de motorgeleidingsrail [mm] | O18: Mootorisiini riputuspunkt [mm] | P18: Avaajan kiskon ripustuspiste [mm]
C19: Hanging point for motor track (E1) [mm] | I19: Kotvící bod lišty pohonu (E1) [mm] | J19: Hanging point for motor track (E1) [mm] | K19: Verankerungspunkt der Antriebsleiste (E1) [mm] | L19: Punkt uchwycenia szyny napędu (E1) [mm] | M19: Point d'ancrage de la glissière de propulsion (E1) [mm] | N19: Bevestigingspunt van de motorgeleidingsrail (E1) [mm] | O19: Mootorisiini riputuspunkt (E1) [mm] | P19: Avaajan kiskon ripustuspiste (E1) [mm]
C20: Hanging point for motor [mm] | I20: Kotvící bod pohonu [mm] | J20: Hanging point for motor [mm] | K20: Verankerungspunkt des Antriebes [mm] | L20: Punkt uchwycenia napędu [mm] | M20: Point d'ancrage de la propulsion [mm] | N20: Bevestigingspunt van de aandrijvingsgeleidingsbalk [mm] | O20: Mootori riputuspunkt [mm] | P20: Avaajan ripustuspiste [mm]
C21: Hanging point for motor (E2) [mm] | I21: Kotvící bod pohonu (E2) [mm] | J21: Hanging point for motor (E2) [mm] | K21: Verankerungspunkt des Antriebes (E2) [mm] | L21: Punkt uchwycenia napędu (E2) [mm] | M21: Point d'ancrage de la propulsion (E2) [mm] | N21: Bevestigingsp. van de aandrijvingsgeleidingsbalk (E2) [mm] | O21: Mootori riputuspunkt (E2) [mm] | P21: Avaajan ripustuspiste (E2) [mm]
C22: Hanging point | I22: Kotvící bod | J22: Hanging point | K22: Verankerungspunkt | L22: Punkt uchwycenia | M22: Point d'ancrage | N22: Bevestigingspunt | O22: Riputuspunkt | P22: Ripustuspiste
C23: Hanging point (W>3000 or H>2500) | I23: Kotvící bod (W>3000 nebo H>2500) | J23: Hanging point (W>3000 or H>2500) | K23: Verankerungspunkt (W>3000 oder H>2500) | L23: Punkt uchwycenia (W>3000 lub H>2500) | M23: Point d'ancrage (W>3000 ou H>2500) | N23: Bevestigingspunt (W>3000 of H>2500) | O23: Riputuspunkt (W>3000 või H>2500) | P23: Ripustuspiste (W>3000 või H>2500)
C24: Standard installation | I24: Standardní montáž | J24: Standard installation | K24: Standardmontage | L24: Instalacja standardowa | M24: Assemblage standard | N24: Standaardmontage | O24: Standard paigaldus | P24: Tavallinen asennusmenetelmä
C25: Alternative installation | I25: Alternativní montáž | J25: Alternative installation | K25: Alternative Montage | L25: Instalacja alternatywna | M25: Assemblage alternatif | N25: Alternatieve montage | O25: Alternatiivne paigaldus | P25: Vaihtoehtoinen asennusmenetelmä
C26: Clear opening height [mm] | I26: Výška stavebního otvoru [mm] | J26: Clear opening height [mm] | K26: Höhe der Bauöffnung [mm] | L26: Wysokość otworu budowlanego [mm] | M26: Hauteur de la baie de construction [mm] | N26: Dagmaat hoogte [mm] | O26: Puhas avanemiskõrgus [mm] | P26: Oviaukon korkeus [mm]
C27: Clear opening height (H) [mm] | I27: Výška stavebního otvoru (H) [mm] | J27: Clear opening height (H) [mm] | K27: Höhe der Bauöffnung (H) [mm] | L27: Wysokość otworu budowlanego (H) [mm] | M27: Hauteur de la baie de construction (H) [mm] | N27: Dagmaat hoogte (H) [mm] | O27: Puhas avanemiskõrgus (H) [mm] | P27: Oviaukon korkeus (H) [mm]
C28: Standard situation | I28: Standardní situace | J28: Standard situation | K28: Standardsituation | L28: Sytuacja standardowa | M28: Situation standard | N28: Standaardsituatie | O28: Standardne olukord | P28: Vakiotilanne
C29: Non-standard situation | I29: Nestandardní situace | J29: Non-standard situation | K29: Ungewöhnliche Situation | L29: Sytuacja niestandardowa | M29: Situation hors de standard | N29: Niet-standaardsituaties | O29: Ebastandardne olukord | P29: Epätyypillinen tilanne
C30: Panel assembly and design of door leaf is always considered based on FOH. | I30: Skladba panelů a design křídla je vždy řešen vůči FOH. | J30: Panel assembly and design of door leaf is always considered based on FOH. | K30: Die Paneelaufteilung und das Design des Torblattes wird immer auf der Basis von FOH-Mass gelöst. | L30: Skład paneli i konstrukcja skrzydła jest zawsze rozpatrywane na podstawie FOH. | M30: Assemblage de panneau et la conception de battant de porte est toujours considéré comme la base de FOH. | N30: Paneel samenstelling en complete opbouw van het deurblad wordt altijd gebaseerd op FOH. | O30: Panel assembly and design of door leaf is always considered based on FOH. | P30: Panel assembly and design of door leaf is always considered based on FOH.
C31: Version: | I31: Verze: | J31: Version: | K31: Version: | L31: Wersja: | M31: VERSION: | N31: Versie: | O31: Versioon: | P31: Versio:
C32: Sheet: | I32: Formát: | J32: Sheet: | K32: Format: | L32: Format: | M32: FORMAT: | N32: Formaat: | O32: Leht: | P32: Koko:
C33: Position of socket, ca. 250 mm | I33: Pozice zásuvky, cca. 250 mm | J33: Position of socket, ca. 250 mm | K33: Die Position der Steckdose ca.250 mm | L33: Położenie gniazda około 250 mm | M33: La position de la prise électrique env. 250 mm | N33: Positie van Eurostopcontact CEE, ca. 250mm | O33: Pistikupesa asend, ca. 250 mm | P33: Pistorasian sijainti, ca. 250 mm
C34: CEE 7/3 or CEE 7/5 socket | I34: Zásuvka typu CEE 7/3 nebo CEE 7/5 | J34: CEE 7/3 or CEE 7/5 socket | K34: Steckdose CEE 7/3 oder CEE 7/5 | L34: Gniazdo CEE 7/3 lub CEE 7/5 | M34: Prise CEE 7/3 ou CEE 7/5 | N34: Eurostopcontact CEE 7/3 of CEE 7/5 | O34: CEE 7/3 või CEE 7/5 pistikupesa | P34: CEE 7/3 või CEE 7/5 pistorasia
C35: 230V, 50Hz, protect by 6 A (10 A) circuit breaker | I35: 230V, 50Hz, jištěno 6 A (10 A) jističem | J35: 230V, 50Hz, protect by 6 A (10 A) circuit breaker | K35: 230V, 50Hz, Sicherung 6 A (10 A) mit Schutzschalter | L35: 230V, 50Hz, ochrona za pomocą bezpiecznika 6A (10A) | M35: 230V, 50Hz, assuré par un disjoncteur 6 A (10 A) | N35: 230V, 50Hz, afgezekerd met 6A (10A) | O35: 230V, 50Hz,kaitsta 6 A (10 A) kaitselülitiga | P35: 230V, 50Hz, 6 A (10 A) suojakytkimellä
C36: Opening width [mm] | I36: Šířka stavebního otvoru [mm] | J36: Opening width [mm] | K36: Lichte Breite [mm] | L36: Szerokość otworu [mm] | M36: Largeur de baie [mm] | N36: Opening breedte | O36: Ava laius [mm] | P36: Oviaukon leveys [mm]
C37: Opening width (W) [mm] | I37: Šířka stavebního otvoru (W) [mm] | J37: Opening width (W) [mm] | K37: Lichte Breite (W) [mm] | L37: Szerokość otworu (W) [mm] | M37: Largeur de baie (W) [mm] | N37: Opening breedte (W) [mm] | O37: Ava laius (W) [mm] | P37: Oviaukon leveys (L) [mm]
C38: Operated | I38: Ovládání | J38: Operated | K38: Bedienung | L38: Sterowanie | M38: Commande | N38: Bediening | O38: Opereeritud | P38: Käyttötapa
C39: manually | I39: ručně | J39: manually | K39: händisch | L39: ręcznie wykonany | M39: manuelle | N39: handbediend | O39: käsitsi | P39: Käsikäyttöinen
C40: electrical | I40: elektricky | J40: electrical | K40: elektrisch | L40: elektrycznie | M40: motorisée | N40: elektrisch | O40: elektriliselt | P40: Sähkökäyttöinen
C41: Height of lintel [mm] | I41: Výška nádpraží [mm] | J41: Height of lintel [mm] | K41: Freiraum über Sturz [mm] | L41: Wysokość nadproża [mm] | M41: Retombée de linteau [mm] | N41: Hoogte van de latei [mm] | O41: Silluse kõrgus [mm] | P41: Kamanan korkeus [mm]
C42: Height of lintel (F) [mm] | I42: Výška nádpraží (F) [mm] | J42: Height of lintel (F) [mm] | K42: Freiraum über Sturz (F) [mm] | L42: Wysokość nadproża (F) [mm] | M42: Retombée de linteau (F) [mm] | N42: Hoogte van de latei (F) [mm] | O42: Silluse kõrgus (F) [mm] | P42: Kamanan korkeus (F) [mm]
C43: Type of motor | I43: Typ pohonu | J43: Type of motor | K43: Der Typ des Antriebs | L43: Rodzaj napędu | M43: Type de motor | N43: Type motor | O43: Mootori tüüp | P43: Avaajan malli
C44: =VLOOKUP($I44,$I:$T,C$2,FALSE) -> Information regarding motor | I44: Informace o motoru | J44: Information regarding motor | K44: Die Information über den Antrieb | L44: Informacje o napędu | M44: Information concernant le moteur | N44: Informatie betreffende de motor | O44: Teave mootori kohta | P44: Sähköistä avajaa koskevat tiedot
C45: Placement of top sealing | I45: Umístění horního těsnění | J45: Placement of top sealing | K45: Die Unterbringung der Oberdichtung | L45: Umieszczenie górnego uszczelnienia | M45: Emplacement du joint d'étanchéité | N45: Plaatsing van de top afdichting | O45: Ülemise tihendi paigaldamine | P45: Ylätiivisteen sijoitus
C46: at lintel | I46: na překladu | J46: at lintel | K46: Auf dem Sturz | L46: Na nadprožu | M46: au linteau | N46: op de latei | O46: sillusel | P46: Kamanassa
C47: on the top section | I47: na horní sekci | J47: on the top section | K47: Auf der Obersektion | L47: Na górnej częśći | M47: sur le panneau supérieur | N47: boven op top paneel | O47: ülemise sektsioonil | P47: Ylälamellissa
C48: Version of SL track system | I48: Verze SL vedení | J48: Version of SL track system | K48: Version der SL-Umlenkung | L48: SL wersja | M48: SL version | N48: Versie van SL beslagsysteem | O48: SL siinisüsteemi versioon | P48: SL nostotavan malli
C49: = set without pre-drilled holes in vertical angle; vertical angle in white color (RAL 9010) | I49: = sety bez předvrtaných otvorů ve svislém úhelníku; svislý úhelník v bílém provedení (RAL 9010) | J49: = set without pre-drilled holes in vertical angle; vertical angle in white color (RAL 9010) | K49: = Zargensätze ohne vorgeborte Löcher, Ausführung in RAL 9010 | L49: = zestawy bez wcześniej nawierconych otworów pod kątem pionowym, kąt pionowy w kolorze białym (RAL 9010) | M49: = Le kit sans trou percé dans le cornier vertical, le cornier vertical en exécution blanc (RAL 9010) | N49: = Set is zonder voorgeboorde gaten in verticale hoek; verticale hoek in kleur wit (RAL 9010) | O49: = set without pre-drilled holes in vertical angle; vertical angle in white color (RAL 9010) | P49: = set without pre-drilled holes in vertical angle; vertical angle in white color (RAL 9010)
C50: clear height could be decreased by accessories installed on inner side of door leaf (handgrip, reinforcing strut etc.) | I50: průjezdná výška může být snížena příslušenstvím nainstalovaným na vnitřní straně vratového křídla (madlo, výztuha apod.) | J50: clear height could be decreased by accessories installed on inner side of door leaf (handgrip, reinforcing strut etc.) | K50: Durchfahrtshöhe kann bei der Montage der Zubehörteile an die Innenseite des Torflügels reduziert werden (betrifft Handgriff, Versteifungen, etc.) | L50: wysokość prześwitu może zostać zmniejszona dzięki akcesoriom zainstalowanym po wewnętrznej stronie skrzydła drzwi (uchwyt, wzmocnienie itp.) | M50: L´ouverture de passage peut être réduite par les accessoires installés en intérieur du vantail de porte (les poignées, les renforts etc.) | N50: De hoogte van de vrije ruimte kan worden verlaagd door accessoires die aan de binnenkant van het deurblad zijn gemonteerd (handgreep, verstevigingsprofielen, enz.) | O50: puhaskõrgust saab vähendada ukselehe siseküljele paigaldatud tarvitute abil (käepide, tugevdustala jne) | P50: Vapaan kulkuaukon korkeus voi väheentyä ovilehteen kinnitetyn lisävarustuksen takia (jäykistin, käsikahva jne.)
C51: when door stopper is used | I51: při použití zarážky vratového křídla | J51: when door stopper is used | K51: bei der Verwendung der Toorflügelsperre | L51: przy użyciu ogranicznika skrzydła bramy | M51: avec la butée pour ventail de porte | N51: wanneer de deurstopper wordt gebruikt | O51: ukselehe stopperi kasutamisel | P51: Ovilehden stopparia käytettäessä
C52: Min. load capacity of ceiling/max. weight per hanging point: 100 kg | I52: Minimální únosnost stropu/maximální zatížení v každém kotevním bodě: 100 kg | J52: Min. load capacity of ceiling/max. weight per hanging point: 100 kg | K52: Minimale Tragfähigkeit der Decke/maximale Belastung in jedem einzelnen Befestigungspunkt: 100kg | L52: Minimalne obciążenie sufitu / maksymalne obciążenie w każdym punkcie uchwycenia: 100 kg | M52: Capacité min.de charge du plafond / capacité max.de charge des points d´ancre : 100kg | N52: Minimaal draagvermogen van plafond/maximaal gewicht per bevestigingspunt: 100kg | O52: Min. lae kandevõime/max kaal ühe riputuspunkti kohta: 100 kg | P52: Katon min. kantavuus/ max paino per ripustuspiste: 100 kg.
C53: Type of motor track | I53: Typ lišty pohonu | J53: Type of motor track | K53: Typ der Antriebsleiste | L53: Typ szyny napędowej | M53: Type de la glissière de propulsion | N53: Type van de motorgeleidingsrail | O53: Mootorisiini tüüp | P53: Moottoripalkin tyyppi
C54: Motor track too short | I54: Lišta pohonu příliš krátká | J54: Motor track too short | K54: Antriebsleiste zu kurz | L54: Drążek napędowy za krótki | M54: Barre d'entraînement trop courte | N54: Aandrijfstang te kort | O54: Liiga lühike ajamiriba | P54: Vetopalkki liian lyhyt

Sheet Selections (hidden)
A1: Výběr jazyka | C1: LHF-C
A2: CZ | B2: 1
A3: EN | B3: 2 | C3: =Translation!C38 -> Operated | E3: Hloubka vedení | I3: =Translation!C43 -> Type of motor | K3: Délka pohonu | N3: Kotvící bod pohonu | Q3: Kotvící bod lišty
A4: DE | B4: 3
A5: PL | B5: 4 | C5: =Translation!C39 -> manually | E5: 0 | F5: =2575 -> 2575 | I5: Black | K5: =I5 -> Black | N5: =I5 -> Black | Q5: =I5 -> Black
A6: FR | B6: 5 | C6: =Translation!C40 -> electrical | E6: 2001 | F6: 2700 | K6: 0 | L6: 3540 | N6: 0 | O6: 3265 | Q6: 0 | R6: 1400
A7: NL | B7: 6 | E7: 2126 | F7: 2825 | I7: Cube | K7: 2376 | L7: 4240 | N7: 2376 | O7: 3975 | Q7: 3001
A8: ET | B8: 7 | E8: 2251 | F8: 2950
A9: FI | B9: 8 | E9: 2376 | F9: 3075
B10: 9 | E10: 2501 | F10: 3325
B11: 10 | E11: 2751 | F11: 3575
B12: 11
K13: =I7 -> Cube | N13: =I7 -> Cube | Q13: =I7 -> Cube
K14: 0 | L14: 3680 | N14: 0 | O14: 3480 | Q14: 0 | R14: 1800
A15: Výběr uložení | K15: 2501 | L15: 4160 | N15: 2501 | O15: 3960 | Q15: 2501 | R15: 2050
A16: Ano
A17: Ne
C18: LHF-C-Ki
C20: =Translation!D38 -> 0 | E20: Hloubka vedení | I20: =Translation!D43 -> 0 | K20: Délka pohonu | N20: Kotvící bod pohonu
C22: =Translation!D39 -> 0 | E22: 0 | F22: =2575 -> 2575 | I22: D600 | K22: =I22 -> D600 | N22: =I22 -> D600
C23: =Translation!D40 -> 0 | E23: 2001 | F23: 2700 | I23: D1000 | K23: =N23 -> F390119 | L23: =O23+(360/2) -> 2795 | N23: =I27 -> F390119 | O23: 2615
E24: 2126 | F24: 2825 | K24: =N24 -> F390126 | L24: =O24+(360/2) -> 3362 | N24: =I28 -> F390126 | O24: 3182
E25: 2251 | F25: 2950 | I25: =Translation!D53 -> 0 | K25: F390132 | L25: =O25+(360/2) -> 3945 | N25: =I29 -> F390132 | O25: 3765
E26: 2376 | F26: 3075 | I26: --- | K26: F390139 | L26: =O26+(360/2) -> 4545 | N26: =I30 -> F390139 | O26: 4365
E27: 2501 | F27: 3325 | H27: 0 | I27: F390119
E28: 2751 | F28: 3575 | H28: 2001 | I28: F390126 | K28: =I23 -> D1000 | N28: =I23 -> D1000
H29: 2401 | I29: F390132 | K29: =N29 -> F390119 | L29: =O29+(360/2) -> 2795 | N29: =I27 -> F390119 | O29: 2615
H30: 3001 | I30: F390139 | K30: =N30 -> F390126 | L30: =O30+(360/2) -> 3362 | N30: =I28 -> F390126 | O30: 3182
K31: F390132 | L31: =O31+(360/2) -> 3945 | N31: =I29 -> F390132 | O31: 3765
K32: F390139 | L32: =O32+(360/2) -> 4545 | N32: =I30 -> F390139 | O32: 4365
C34: LHR-C
C36: =Translation!E38 -> 0 | E36: Hloubka vedení | I36: =Translation!E43 -> 0 | K36: Délka pohonu | N36: Kotvící bod pohonu | Q36: Kotvící bod lišty
C38: =Translation!E39 -> 0 | E38: 0 | F38: =2575+120 -> 2695 | I38: Black | K38: =I38 -> Black | N38: =I38 -> Black | Q38: =I38 -> Black
C39: =Translation!E40 -> 0 | E39: 2001 | F39: =2700+120 -> 2820 | K39: 0 | L39: 3540 | N39: 0 | O39: 3265 | Q39: 0 | R39: 1400
E40: 2126 | F40: =2825+120 -> 2945 | I40: Cube | K40: 2376 | L40: 4240 | N40: 2376 | O40: 3975 | Q40: 3001
C41: Umístění horního těsnění | E41: 2251 | F41: =2950+120 -> 3070 | I41: =Translation!E42 -> 0
E42: 2376 | F42: =3075+120 -> 3195 | I42: =IF(H42=Selections!C38,90,IF(H42=Selections!C39,125,"Error")) -> 90
C43: =Translation!E46 -> 0 | E43: 2501 | F43: =3325+120 -> 3445 | I43: =IF(H43=Selections!C43,0,IF(H43=Selections!C44,35,"Error")) -> 0
C44: =Translation!E47 -> 0 | E44: 2751 | F44: =3575+120 -> 3695
K46: =I40 -> Cube | N46: =I40 -> Cube | Q46: =I40 -> Cube
K47: 0 | L47: 3680 | N47: 0 | O47: 3480 | Q47: 0 | R47: 1800
K48: 2501 | L48: 4160 | N48: 2126 | O48: 3960 | Q48: 2501 | R48: 2050
C50: LHR-C-Ki
C52: =Translation!F38 -> 0 | E52: Hloubka vedení | I52: =Translation!F43 -> 0 | K52: Délka pohonu | N52: Kotvící bod pohonu
C54: =Translation!F39 -> 0 | E54: 0 | F54: =2575+120 -> 2695 | I54: D600 | K54: =I54 -> D600 | N54: =I54 -> D600
C55: =Translation!F40 -> 0 | E55: 2001 | F55: =2700+120 -> 2820 | I55: D1000 | K55: =N55 -> F390119 | L55: =O55+(360/2) -> 2795 | N55: =I63 -> F390119 | O55: 2615
E56: 2126 | F56: =2825+120 -> 2945 | K56: =N56 -> F390126 | L56: =O56+(360/2) -> 3362 | N56: =I64 -> F390126 | O56: 3182
C57: Umístění horního těsnění | E57: 2251 | F57: =2950+120 -> 3070 | I57: =Translation!F42 -> 0 | K57: F390132 | L57: =O57+(360/2) -> 3945 | N57: =I65 -> F390132 | O57: 3765
E58: 2376 | F58: =3075+120 -> 3195 | I58: =IF(H58=Selections!C54,90,IF(H58=Selections!C55,125,"Error")) -> 90 | K58: F390139 | L58: =O58+(360/2) -> 4545 | N58: =I66 -> F390139 | O58: 4365
C59: =Translation!F46 -> 0 | E59: 2501 | F59: =3325+120 -> 3445 | I59: =IF(H59=Selections!C59,0,IF(H59=Selections!C60,35,"Error")) -> 0
C60: =Translation!F47 -> 0 | E60: 2751 | F60: =3575+120 -> 3695 | K60: =I55 -> D1000 | N60: =I55 -> D1000
I61: =Translation!F53 -> 0 | K61: =N61 -> F390119 | L61: =O61+(360/2) -> 2795 | N61: =I63 -> F390119 | O61: 2615
I62: --- | K62: =N62 -> F390126 | L62: =O62+(360/2) -> 3362 | N62: =I64 -> F390126 | O62: 3182
H63: 0 | I63: F390119 | K63: F390132 | L63: =O63+(360/2) -> 3945 | N63: =I65 -> F390132 | O63: 3765
H64: 2001 | I64: F390126 | K64: F390139 | L64: =O64+(360/2) -> 4545 | N64: =I66 -> F390139 | O64: 4365
H65: 2401 | I65: F390132
H66: 3001 | I66: F390139
C68: GV-SL
C70: =Translation!G38 -> 0 | I70: =Translation!G43 -> 0 | K70: Délka pohonu | N70: Kotvící bod pohonu | Q70: Kotvící bod lišty | T70: =Translation!G48 -> 0
C72: =Translation!G39 -> 0 | I72: Black | K72: =I72 -> Black | N72: =I72 -> Black | Q72: =I72 -> Black | T72: SL 350
C73: =Translation!G40 -> 0 | K73: 0 | L73: 3540 | N73: 0 | O73: 3265 | Q73: 0 | R73: 1400 | T73: SL 420
I74: Cube | K74: 2376 | L74: 4240 | N74: 2376 | O74: 3975 | Q74: 3001
K80: =I74 -> Cube | N80: =I74 -> Cube | Q80: =I74 -> Cube
K81: 0 | L81: 3680 | N81: 0 | O81: 3480 | Q81: 0 | R81: 1800
K82: 2501 | L82: 4160 | N82: 2126 | O82: 3960 | Q82: 2501 | R82: 2050
C84: GV-SL-Ki
C86: =Translation!H38 -> 0 | I86: =Translation!H43 -> 0 | K86: Délka pohonu | N86: Kotvící bod pohonu | Q86: =Translation!H48 -> 0
C88: =Translation!H39 -> 0 | I88: D600 | K88: =I88 -> D600 | N88: =I88 -> D600 | Q88: SL 350
C89: =Translation!H40 -> 0 | I89: D1000 | K89: =N89 -> F390119 | L89: =O89+(360/2) -> 2795 | N89: =I96 -> F390119 | O89: 2615 | Q89: SL 420
K90: =N90 -> F390126 | L90: =O90+(360/2) -> 3362 | N90: =I97 -> F390126 | O90: 3182
K91: F390132 | L91: =O91+(360/2) -> 3945 | N91: =I98 -> F390132 | O91: 3765
K92: F390139 | L92: =O92+(360/2) -> 4545 | N92: =I99 -> F390139 | O92: 4365
I94: =Translation!F80 -> 0 | K94: =I89 -> D1000 | N94: =I89 -> D1000
I95: --- | K95: =N95 -> F390119 | L95: =O95+(360/2) -> 2795 | N95: =I96 -> F390119 | O95: 2615
H96: 0 | I96: F390119 | K96: =N96 -> F390126 | L96: =O96+(360/2) -> 3362 | N96: =I97 -> F390126 | O96: 3182
H97: 2001 | I97: F390126 | K97: F390132 | L97: =O97+(360/2) -> 3945 | N97: F390132 | O97: 3765
H98: 2401 | I98: F390132 | K98: F390139 | L98: =O98+(360/2) -> 4545 | N98: F390139 | O98: 4365
H99: 3001 | I99: F390139
